fUST/lending_fUST_20250704
["ID","MTS","AMOUNT","RATE_DAILY","PERIOD"]
[369364409,1751559044024,-460.0,0.00019452,2]
[369364410,1751559044034,-917.1,0.00019452,2]
[369364411,1751559044044,-510.41,0.00019452,2]
[369364412,1751559044053,-587.0,0.00019513,2]
[369364413,1751559044063,-257.2143559,0.00019535,2]
[369364414,1751559044073,-151.0,0.000196,2]
[369364415,1751559044082,-1225.32,0.00019724,2]
[369364416,1751559044092,-574.22,0.00019725,2]
[369364417,1751559044103,-569.22,0.00019725,2]
[369364418,1751559044113,-529.92,0.00019725,2]
[369364419,1751559044122,-828.51,0.00019726,2]
[369364420,1751559044132,-460.0,0.00019726,2]
[369364421,1751559044142,-460.0,0.00019726,2]
[369364422,1751559044152,-460.0,0.00019726,2]
[369364423,1751559044161,-460.0,0.00019726,2]
[369364424,1751559044171,-831.34,0.00019726,2]
[369364425,1751559044180,-493.27,0.00019726,2]
[369364426,1751559044190,-460.0,0.00019726,2]
[369364427,1751559044199,-460.0,0.00019726,2]
[369364428,1751559044209,-460.0,0.00019726,2]
[369364429,1751559044218,-716.24,0.00019726,2]
[369364430,1751559044228,-460.0,0.00019726,2]
[369364431,1751559044237,-787.62,0.00019726,2]
[369364432,1751559044247,-500.39,0.00019726,2]
[369364433,1751559044257,-708.51,0.00019726,2]
[369364434,1751559044266,-460.0,0.00019726,2]
[369364435,1751559044275,-460.0,0.00019726,2]
[369364436,1751559044284,-460.0,0.00019726,2]
[369364437,1751559044294,-917.1,0.00019726,2]
[369364438,1751559044304,-510.41,0.00019726,2]
[369364439,1751559044314,-151.0,0.000198,2]
[369364440,1751559044324,-314.27623494,0.00019856,2]
[369364441,1751559044336,-290.29934044,0.00019973,2]
[369364442,1751559044348,-500.0,0.00019973,2]
[369364443,1751559044360,-500.0,0.00019973,2]
[369364444,1751559044371,-500.0,0.00019973,2]
[369364445,1751559044381,-500.0,0.00019973,2]
[369364446,1751559044391,-600.0,0.00019973,2]
[369364447,1751559044401,-500.0,0.00019973,2]
[369364448,1751559044411,-501.05354607,0.00019973,2]
[369364449,1751559044421,-500.0,0.00019973,2]
[369364450,1751559044431,-500.0,0.00019973,2]
[369364451,1751559044441,-500.0,0.00019973,2]
[369364452,1751559044451,-500.0,0.00019973,2]
[369364453,1751559044460,-500.0,0.00019973,2]
[369364454,1751559044470,-500.0,0.00019973,2]
[369364455,1751559044479,-500.0,0.00019973,2]
[369364456,1751559044489,-519.89595203,0.00019973,2]
[369364457,1751559044499,-500.0,0.00019973,2]
[369364458,1751559044511,-500.0,0.00019973,2]
[369364459,1751559044521,-500.0,0.00019973,2]
[369364460,1751559044530,-500.0,0.00019973,2]
[369364461,1751559044539,-500.0,0.00019973,2]
[369364462,1751559044549,-500.0,0.00019973,2]
[369364463,1751559044565,-1225.32,0.00019998,2]
[369364464,1751559044580,-569.22,0.00019999,2]
[369364465,1751559044589,-529.92,0.00019999,2]
[369364466,1751559044599,-156933.27047522,0.0002,2]
[369364467,1751559044617,-43645.94568339,0.0002,2]
[369364468,1751559044627,-12500.0,0.0002,2]
[369364469,1751559044637,-151.0,0.0002,2]
[369364470,1751559044649,-828.51,0.0002,2]
[369364471,1751559044663,-460.0,0.0002,2]
[369364472,1751559044674,-460.0,0.0002,2]
[369364473,1751559044689,-460.0,0.0002,2]
[369364474,1751559044700,-433.34427331,0.0002,2]
[369364475,1751559044711,-460.0,0.0002,2]
[369364476,1751559044724,-831.34,0.0002,2]
[369364477,1751559044736,-493.27,0.0002,2]
[369364478,1751559044749,-460.0,0.0002,2]
[369364479,1751559044761,-460.0,0.0002,2]
[369364480,1751559044774,-460.0,0.0002,2]
[369364482,1751559044786,-716.24,0.0002,2]
[369364484,1751559044797,-460.0,0.0002,2]
[369364486,1751559044808,-787.62,0.0002,2]
[369364488,1751559044819,-500.39,0.0002,2]
[369364490,1751559044831,-708.51,0.0002,2]
[369364491,1751559044843,-460.0,0.0002,2]
[369364492,1751559044855,-460.0,0.0002,2]
[369364493,1751559044866,-460.0,0.0002,2]
[369364494,1751559044878,-917.1,0.0002,2]
[369364495,1751559044890,-510.41,0.0002,2]
[369364496,1751559044903,-510.60027015,0.00020019,2]
[369364497,1751559044916,-267.606411,0.00020187,2]
[369364498,1751559044928,-151.0,0.000202,4]
[369364499,1751559044939,-183.334,0.00020206,2]
[369364500,1751559044950,-1225.32,0.00020272,2]
[369364501,1751559044963,-828.51,0.00020273,2]
[369364502,1751559044974,-460.0,0.00020273,2]
[369364503,1751559044987,-442.02023353,0.00020273,2]
[369364504,1751559044998,-506.75451664,0.00020273,2]
[369364505,1751559045009,-569.1054534,0.00020273,2]
[369364506,1751559045020,-831.34,0.00020273,2]
[369364507,1751559045033,-493.27,0.00020273,2]
[369364508,1751559045043,-460.0,0.00020273,2]
[369364509,1751559045055,-460.0,0.00020273,2]
[369364510,1751559045067,-460.0,0.00020273,2]
[369364511,1751559045077,-716.24,0.00020273,2]
[369364512,1751559045089,-438.13076302,0.00020273,2]
[369364513,1751559045101,-787.62,0.00020273,2]
[369364514,1751559045117,-569.22,0.00020273,2]
[369364515,1751559045128,-500.39,0.00020273,2]
[369364516,1751559045139,-708.51,0.00020273,2]
[369364517,1751559045150,-460.0,0.00020273,2]
[369364518,1751559045163,-602.28591477,0.00020273,2]
[369364519,1751559045180,-460.0,0.00020273,2]
[369364520,1751559045191,-917.1,0.00020273,2]
[369364521,1751559045201,-529.92,0.00020273,2]
[369364522,1751559045213,-510.41,0.00020273,2]
[369364523,1751559045224,-484.0,0.00020275,2]
[369364524,1751559045234,-151.0,0.000204,4]
[369364525,1751559045245,-207.4,0.00020458,2]
[369364526,1751559045257,-500.0,0.00020458,2]
[369364527,1751559045268,-500.0,0.00020458,2]
[369364528,1751559045279,-500.0,0.00020458,2]
[369364529,1751559045291,-500.0,0.00020458,2]
[369364530,1751559045302,-500.0,0.00020458,2]
[369364531,1751559045313,-5000.0,0.00020458,2]
[369364532,1751559045325,-500.0,0.00020458,2]
[369364533,1751559045337,-500.0,0.00020458,2]
[369364534,1751559045350,-500.0,0.00020458,2]
[369364535,1751559045363,-500.0,0.00020458,2]
[369364536,1751559045374,-500.0,0.00020458,2]
[369364537,1751559045387,-500.0,0.00020458,2]
[369364538,1751559045399,-500.0,0.00020458,2]
[369364539,1751559045409,-500.0,0.00020458,2]
[369364540,1751559045419,-500.0,0.00020458,2]
[369364541,1751559045429,-500.0,0.00020458,2]
[369364542,1751559045439,-500.0,0.00020458,2]
[369364543,1751559045449,-25000.0,0.00020458,2]
[369364544,1751559045460,-10916.57831657,0.00020458,2]
[369364545,1751559045471,-151.0,0.000205,3]
[369364546,1751559045483,-1000.0,0.00020521,2]
[369364547,1751559045494,-1000.0,0.00020521,2]
[369364548,1751559045506,-1000.0,0.00020521,2]
[369364549,1751559045518,-1000.0,0.00020521,2]
[369364550,1751559045529,-1200.0,0.00020521,2]
[369364551,1751559045540,-1000.41508319,0.00020521,2]
[369364552,1751559045551,-1000.0,0.00020521,2]
[369364553,1751559045561,-1000.0,0.00020521,2]
[369364554,1751559045572,-1000.0,0.00020521,2]
[369364555,1751559045582,-1000.0,0.00020521,2]
[369364556,1751559045593,-1000.0,0.00020521,2]
[369364557,1751559045604,-1000.0,0.00020521,2]
[369364558,1751559045615,-1000.0,0.00020521,2]
[369364559,1751559045627,-1000.0,0.00020521,2]
[369364560,1751559045638,-505.25506435,0.00020521,2]
[369364561,1751559045649,-1225.32,0.00020546,2]
[369364562,1751559045659,-828.51,0.00020547,2]
[369364563,1751559045670,-460.0,0.00020547,2]
[369364564,1751559045680,-831.34,0.00020547,2]
[369364565,1751559045694,-493.27,0.00020547,2]
[369364566,1751559045705,-460.0,0.00020547,2]
[369364567,1751559045715,-460.0,0.00020547,2]
[369364568,1751559045726,-460.0,0.00020547,2]
[369364569,1751559045738,-716.24,0.00020547,2]
[369364570,1751559045748,-787.62,0.00020547,2]
[369364571,1751559045759,-569.22,0.00020547,2]
[369364572,1751559045770,-500.39,0.00020547,2]
[369364573,1751559045780,-708.51,0.00020547,2]
[369364574,1751559045791,-502.9171069,0.00020547,2]
[369364575,1751559045802,-460.0,0.00020547,2]
[369364576,1751559045813,-917.1,0.00020547,2]
[369364577,1751559045823,-529.92,0.00020547,2]
[369364578,1751559045833,-510.41,0.00020547,2]
[369364579,1751559045844,-7277.82,0.000206,2]
[369364580,1751559045856,-621.0,0.00020665,2]
[369364581,1751559045867,-2600.31911448,0.0002068,2]
[369364582,1751559045878,-151.0,0.00020701,4]
[369364583,1751559045889,-213.94585247,0.00020753,10]
[369364584,1751559045899,-524.79141297,0.00020753,10]
[369364585,1751559045910,-847.79783075,0.00020753,10]
[369364586,1751559045921,-12575.98004106,0.00020753,10]
[369364587,1751559045931,-151.0,0.000208,4]
[369364588,1751559045942,-510.60027015,0.0002081,2]
[369364589,1751559045953,-1225.32,0.0002082,2]
[369364590,1751559045963,-828.51,0.00020821,2]
[369364591,1751559045974,-460.0,0.00020821,2]
[369364592,1751559045985,-831.34,0.00020821,2]
[369364593,1751559045996,-493.27,0.00020821,2]
[369364594,1751559046006,-460.0,0.00020821,2]
[369364595,1751559046016,-460.0,0.00020821,2]
[369364596,1751559046027,-460.0,0.00020821,2]
[369364597,1751559046038,-716.24,0.00020821,2]
[369364598,1751559046049,-787.62,0.00020821,2]
[369364599,1751559046060,-569.22,0.00020821,2]
[369364600,1751559046070,-500.39,0.00020821,2]
[369364601,1751559046081,-708.51,0.00020821,2]
[369364602,1751559046092,-460.0,0.00020821,2]
[369364603,1751559046104,-917.1,0.00020821,2]
[369364604,1751559046114,-529.92,0.00020821,2]
[369364605,1751559046125,-510.41,0.00020821,2]
[369364606,1751559046136,-2600.31911448,0.00020858,2]
[369364607,1751559046148,-151.0,0.000209,3]
[369364608,1751559046159,-151.0,0.000209,4]
[369364609,1751559046170,-2000.0,0.00021,2]
[369364610,1751559046182,-3000.0,0.00021,2]
[369364611,1751559046192,-150.0,0.00021,30]
[369364612,1751559046203,-5000.0,0.00021006,2]
[369364613,1751559046215,-3000.0,0.0002101,2]
[369364614,1751559046226,-3000.0,0.0002102,2]
[369364615,1751559046237,-3000.0,0.0002103,2]
[369364616,1751559046249,-3000.0,0.0002104,2]
[369364617,1751559046261,-3000.0,0.0002105,2]
[369364618,1751559046272,-3000.0,0.0002106,2]
[369364619,1751559046283,-503.10034898,0.00021068,2]
[369364620,1751559046293,-1500.0,0.00021068,2]
[369364621,1751559046305,-200.3101293,0.00021068,2]
[369364623,1751559046315,-1500.0,0.00021068,2]
[369364624,1751559046327,-1800.0,0.00021068,2]
[369364625,1751559046338,-1500.0,0.00021068,2]
[369364626,1751559046350,-1500.0,0.00021068,2]
[369364627,1751559046362,-1500.0,0.00021068,2]
[369364628,1751559046373,-1500.0,0.00021068,2]
[369364629,1751559046384,-1502.75949213,0.00021068,2]
[369364630,1751559046395,-1500.0,0.00021068,2]
[369364631,1751559046406,-3000.0,0.0002107,2]
[369364632,1751559046416,-3000.0,0.0002108,2]
[369364633,1751559046426,-3000.0,0.0002109,2]
[369364634,1751559046436,-1225.32,0.00021094,2]
[369364635,1751559046446,-828.51,0.00021095,2]
[369364636,1751559046456,-460.0,0.00021095,2]
[369364637,1751559046466,-831.34,0.00021095,2]
[369364638,1751559046476,-493.27,0.00021095,2]
[369364639,1751559046485,-460.0,0.00021095,2]
[369364640,1751559046495,-301.81226747,0.00021095,2]
[369364641,1751559046504,-460.0,0.00021095,2]
[369364642,1751559046514,-716.24,0.00021095,2]
[369364643,1751559046524,-787.62,0.00021095,2]
[369364644,1751559046534,-569.22,0.00021095,2]
[369364645,1751559046543,-500.39,0.00021095,2]
[369364646,1751559046553,-708.51,0.00021095,2]
[369364647,1751559046563,-460.0,0.00021095,2]
[369364648,1751559046572,-917.1,0.00021095,2]
[369364649,1751559046582,-529.92,0.00021095,2]
[369364650,1751559046591,-510.41,0.00021095,2]
[369364651,1751559046601,-3000.0,0.000211,2]
[369364652,1751559046611,-3000.0,0.0002111,2]
[369364653,1751559046621,-3000.0,0.0002112,2]
[369364656,1751559046849,-3000.0,0.0002113,2]
[369364657,1751559046864,-3000.0,0.0002114,2]
[369364658,1751559046874,-2600.31911448,0.00021142,2]
[369364659,1751559046884,-151.0,0.00021148,5]
[369364660,1751559046893,-3000.0,0.0002115,2]
[369364661,1751559046903,-3000.0,0.0002116,2]
[369364662,1751559046912,-3000.0,0.0002117,2]
[369364663,1751559046922,-3000.0,0.0002118,2]
[369364664,1751559046931,-3000.0,0.0002119,2]
[369364665,1751559046942,-3000.0,0.000212,2]
[369364666,1751559046951,-151.0,0.000212,4]
[369364667,1751559046961,-3000.0,0.0002121,2]
[369364668,1751559046971,-3000.0,0.0002122,2]
[369364669,1751559046980,-3000.0,0.0002123,2]
[369364670,1751559046990,-3000.0,0.0002124,2]
[369364671,1751559046999,-3000.0,0.0002125,2]
[369364672,1751559047009,-3129.404534,0.0002126,2]
[369364673,1751559047019,-151.0,0.00021273,2]
[369364674,1751559047029,-213.88239,0.00021273,2]
[369364675,1751559047038,-621.0,0.00021273,2]
[369364676,1751559047047,-151.0,0.00021285,2]
[369364677,1751559047056,-151.0,0.00021285,2]
[369364678,1751559047066,-210.090478,0.00021285,2]
[369364679,1751559047076,-210.090478,0.00021285,2]
[369364680,1751559047086,-151.0,0.000213,3]
[369364681,1751559047095,-151.0,0.000213,3]
[369364682,1751559047105,-823.0,0.00021327,2]
[369364683,1751559047115,-2051.44,0.00021338,2]
[369364684,1751559047124,-500.0,0.00021356,2]
[369364685,1751559047134,-1225.32,0.00021368,2]
[369364686,1751559047144,-828.51,0.00021369,2]
[369364687,1751559047154,-151.0,0.00021369,2]
[369364688,1751559047176,-460.0,0.00021369,2]
[369364689,1751559047187,-151.0,0.00021369,2]
[369364690,1751559047197,-151.0,0.00021369,2]
[369364691,1751559047208,-831.34,0.00021369,2]
[369364692,1751559047218,-493.27,0.00021369,2]
[369364693,1751559047228,-460.0,0.00021369,2]
[369364694,1751559047239,-175.1,0.00021369,2]
[369364695,1751559047249,-716.24,0.00021369,2]
[369364696,1751559047260,-787.62,0.00021369,2]
[369364697,1751559047271,-569.22,0.00021369,2]
[369364698,1751559047281,-500.39,0.00021369,2]
[369364699,1751559047291,-708.51,0.00021369,2]
[369364700,1751559047301,-460.0,0.00021369,2]
[369364701,1751559047312,-917.1,0.00021369,2]
[369364703,1751559047322,-529.92,0.00021369,2]
[369364704,1751559047333,-2600.31911448,0.0002143,2]
[369364705,1751559047343,-168.43893018,0.00021534,2]
[369364707,1751559047354,-151.0,0.00021595,5]
[369364709,1751559047365,-510.60027015,0.000216,2]
[369364711,1751559047375,-2000.0,0.000216,2]
[369364713,1751559047385,-1000.0,0.000216,5]
[369364715,1751559047395,-151.0,0.000216,4]
[369364717,1751559047406,-151.0,0.000216,3]
[369364719,1751559047416,-151.0,0.00021616,2]
[369364721,1751559047426,-508.64317443,0.00021616,2]
[369364723,1751559047436,-2000.0,0.00021616,2]
[369364725,1751559047447,-2400.0,0.00021616,2]
[369364727,1751559047457,-1548.83669615,0.00021616,2]
[369364729,1751559047467,-2000.0,0.00021616,2]
[369364731,1751559047477,-553.43519719,0.00021616,2]
[369364733,1751559047487,-1068.62793992,0.00021616,2]
[369364735,1751559047500,-2000.0,0.00021616,2]
[369364737,1751559047510,-1225.32,0.00021642,2]
[369364740,1751559047520,-828.51,0.00021643,2]
[369364742,1751559047530,-460.0,0.00021643,2]
[369364743,1751559047540,-831.34,0.00021643,2]
[369364745,1751559047550,-493.27,0.00021643,2]
[369364747,1751559047560,-460.0,0.00021643,2]
[369364750,1751559047570,-716.24,0.00021643,2]
[369364752,1751559047581,-787.62,0.00021643,2]
[369364754,1751559047590,-569.22,0.00021643,2]
[369364756,1751559047600,-500.39,0.00021643,2]
[369364758,1751559047611,-708.51,0.00021643,2]
[369364760,1751559047621,-460.0,0.00021643,2]
[369364762,1751559047631,-917.1,0.00021643,2]
[369364764,1751559047641,-529.92,0.00021643,2]
[369364766,1751559047651,-5000.0,0.00021644,2]
[369364768,1751559047661,-1045.56645906,0.00021644,2]
[369364770,1751559047671,-151.0,0.000217,3]
[369364772,1751559047681,-7277.82,0.000217,2]
[369364774,1751559047693,-2600.31911448,0.00021761,2]
[369364776,1751559047704,-366.4782688,0.00021781,2]
[369364778,1751559047714,-366.4782688,0.00021781,2]
[369364780,1751559047723,-366.4782688,0.00021781,2]
[369364782,1751559047734,-365.3960954,0.00021781,2]
[369364784,1751559047744,-168.43893018,0.00021808,2]
[369364786,1751559047753,-200.0,0.0002182,3]
[369364788,1751559047764,-215.0738,0.00021827,2]
[369364790,1751559047774,-168.0,0.00021887,2]
[369364792,1751559047784,-5000.0,0.00021908,2]
[369364794,1751559047794,-1225.32,0.00021916,2]
[369364796,1751559047804,-500.0,0.00021917,2]
[369364798,1751559047814,-500.0,0.00021917,2]
[369364800,1751559047824,-500.0,0.00021917,2]
[369364802,1751559047834,-500.0,0.00021917,2]
[369364804,1751559047843,-500.0,0.00021917,2]
[369364806,1751559047853,-500.0,0.00021917,2]
[369364808,1751559047864,-500.0,0.00021917,2]
[369364810,1751559047873,-500.0,0.00021917,2]
[369364812,1751559047883,-500.0,0.00021917,2]
[369364814,1751559047893,-500.0,0.00021917,2]
[369364816,1751559047903,-500.0,0.00021917,2]
[369364818,1751559047912,-500.0,0.00021917,2]
[369364820,1751559047922,-411.53573301,0.00021917,2]
[369364822,1751559047932,-724.15,0.00021917,2]
[369364824,1751559047941,-724.15,0.00021917,2]
[369364826,1751559047951,-724.15,0.00021917,2]
[369364828,1751559047962,-724.15,0.00021917,2]
[369364829,1751559047972,-724.15,0.00021917,2]
[369364832,1751559047982,-724.15,0.00021917,2]
[369364834,1751559047991,-724.15,0.00021917,2]
[369364835,1751559048000,-724.15,0.00021917,2]
[369364837,1751559048010,-724.15,0.00021917,2]
[369364839,1751559048019,-724.15,0.00021917,2]
[369364841,1751559048029,-724.15,0.00021917,2]
[369364843,1751559048039,-724.15,0.00021917,2]
[369364845,1751559048049,-724.15,0.00021917,2]
[369364847,1751559048059,-724.15,0.00021917,2]
[369364849,1751559048069,-724.15,0.00021917,2]
[369364851,1751559048078,-724.15,0.00021917,2]
[369364853,1751559048088,-724.15,0.00021917,2]
[369364855,1751559048098,-724.15,0.00021917,2]
[369364856,1751559048109,-724.15,0.00021917,2]
[369364857,1751559048119,-724.15,0.00021917,2]
[369364858,1751559048129,-724.15,0.00021917,2]
[369364859,1751559048139,-828.51,0.00021917,2]
[369364860,1751559048149,-460.0,0.00021917,2]
[369364861,1751559048159,-831.34,0.00021917,2]
[369364862,1751559048169,-493.27,0.00021917,2]
[369364863,1751559048179,-246.84356898,0.00021917,2]
[369364864,1751559048189,-716.24,0.00021917,2]
[369364865,1751559048199,-787.62,0.00021917,2]
[369364866,1751559048209,-569.22,0.00021917,2]
[369364867,1751559048220,-500.39,0.00021917,2]
[369364868,1751559048229,-708.51,0.00021917,2]
[369364869,1751559048239,-460.0,0.00021917,2]
[369364870,1751559048250,-460.0,0.00021917,2]
[369364871,1751559048260,-460.0,0.00021917,2]
[369364872,1751559048271,-460.0,0.00021917,2]
[369364873,1751559048281,-460.0,0.00021917,2]
[369364874,1751559048292,-460.0,0.00021917,2]
[369364875,1751559048302,-460.0,0.00021917,2]
[369364876,1751559048313,-460.0,0.00021917,2]
[369364877,1751559048323,-460.0,0.00021917,2]
[369364878,1751559048333,-460.0,0.00021917,2]
[369364879,1751559048344,-460.0,0.00021917,2]
[369364880,1751559048356,-296.94156336,0.00021917,2]
[369364881,1751559048366,-917.1,0.00021917,2]
[369364882,1751559048376,-529.92,0.00021917,2]
[369364883,1751559048386,-381.340545,0.00021918,2]
[369364884,1751559048396,-381.340545,0.00021918,2]
[369364885,1751559048406,-404.75818205,0.00021918,7]
[369364886,1751559048417,-1143.53127536,0.00021918,2]
[369364887,1751559048427,-150.0,0.00021918,2]
[369364888,1751559048437,-53985.8754245,0.0002192,2]
[369364889,1751559048447,-356.635566,0.0002199,2]
[369364890,1751559048457,-356.635566,0.0002199,2]
[369364891,1751559048467,-2000.0,0.00022,2]
[369364892,1751559048477,-51230.65,0.00022,7]
[369364893,1751559048487,-5206.8,0.00022,7]
[369364894,1751559048497,-123844.63,0.00022,2]
[369364895,1751559048507,-151.903635,0.00022,7]
[369364896,1751559048517,-1000.0,0.00022,22]
[369364897,1751559048527,-151.0,0.00022,7]
[369364898,1751559048536,-175.471602,0.00022,7]
[369364899,1751559048546,-151.0,0.00022,7]
[369364900,1751559048557,-213.94585247,0.00022,7]
[369364901,1751559048566,-151.0,0.00022,7]
[369364902,1751559048576,-151.0,0.00022,7]
[369364903,1751559048586,-151.0,0.00022,7]
[369364904,1751559048595,-160.0,0.00022,7]
[369364905,1751559048607,-847.79783075,0.00022,7]
[369364906,1751559048616,-381.340545,0.00022,7]
[369364907,1751559048626,-381.340545,0.00022,7]
[369364908,1751559048636,-12575.98004106,0.00022,7]
[369364909,1751559048646,-151.0,0.00022,7]
[369364910,1751559048655,-151.0,0.00022,7]
[369364911,1751559048666,-210.090478,0.00022,7]
[369364912,1751559048676,-210.090478,0.00022,7]
[369364913,1751559048687,-379.920874,0.00022039,4]
[369364914,1751559048702,-2600.31911448,0.00022041,2]
[369364915,1751559048711,-151.0,0.00022042,5]
[369364916,1751559048721,-151.0,0.000221,6]
[369364917,1751559048732,-475.23795462,0.00022164,2]
[369364918,1751559048742,-3000.0,0.00022164,2]
[369364919,1751559048752,-2500.0,0.00022164,2]
[369364920,1751559048762,-2500.0,0.00022164,2]
[369364922,1751559048772,-1225.32,0.0002219,2]
[369364924,1751559048782,-724.15,0.00022191,2]
[369364926,1751559048791,-179.39382634,0.00022191,2]
[369364928,1751559048801,-828.51,0.00022191,2]
[369364930,1751559048811,-605.21057547,0.00022191,2]
[369364932,1751559048820,-831.34,0.00022191,2]
[369364934,1751559048830,-493.27,0.00022191,2]
[369364936,1751559048839,-716.24,0.00022191,2]
[369364938,1751559048849,-787.62,0.00022191,2]
[369364940,1751559048860,-569.22,0.00022191,2]
[369364942,1751559048869,-500.39,0.00022191,2]
[369364944,1751559048879,-708.51,0.00022191,2]
[369364946,1751559048889,-467.48,0.00022191,2]
[369364948,1751559048898,-917.1,0.00022191,2]
[369364950,1751559048908,-529.92,0.00022191,2]
[369364952,1751559048918,-177.6570982,0.00022192,2]
[369364954,1751559048927,-159.3982008,0.00022192,2]
[369364956,1751559048937,-202.4526486,0.00022192,2]
[369364958,1751559048947,-566.0274452,0.00022192,2]
[369364960,1751559048956,-159.3982008,0.00022192,2]
[369364962,1751559048966,-153.0,0.00022192,2]
[369364963,1751559048978,-177.6570982,0.00022192,2]
[369364965,1751559048989,-153.0,0.00022192,2]
[369364966,1751559048999,-575.6969649,0.00022192,2]
[369364967,1751559049009,-159.3982008,0.00022192,2]
[369364968,1751559049018,-159.3982008,0.00022192,2]
[369364969,1751559049028,-1151.3939298,0.00022192,2]
[369364970,1751559049038,-177.6570982,0.00022192,2]
[369364971,1751559049047,-177.6570982,0.00022192,2]
[369364972,1751559049056,-575.6969649,0.00022192,2]
[369364973,1751559049066,-159.3982008,0.00022192,2]
[369364974,1751559049077,-153.0,0.00022192,2]
[369364975,1751559049086,-177.6570982,0.00022192,2]
[369364976,1751559049096,-159.3982008,0.00022192,2]
[369364977,1751559049107,-575.6969649,0.00022192,2]
[369364978,1751559049116,-177.6570982,0.00022192,2]
[369364979,1751559049125,-153.0,0.00022192,2]
[369364980,1751559049135,-575.6969649,0.00022192,2]
[369364981,1751559049145,-159.3982008,0.00022192,2]
[369364982,1751559049155,-575.6969649,0.00022192,2]
[369364983,1751559049165,-177.6570982,0.00022192,2]
[369364984,1751559049175,-159.3982008,0.00022192,2]
[369364985,1751559049184,-159.3982008,0.00022192,2]
[369364986,1751559049194,-177.6570982,0.00022192,2]
[369364987,1751559049204,-575.6969649,0.00022192,2]
[369364988,1751559049214,-153.0,0.00022192,2]
[369364989,1751559049224,-177.6570982,0.00022192,2]
[369364990,1751559049234,-575.6969649,0.00022192,2]
[369364991,1751559049244,-159.3982008,0.00022192,2]
[369364992,1751559049253,-253.8026502,0.00022192,2]
[369364993,1751559049263,-177.6570982,0.00022192,2]
[369364994,1751559049273,-575.6969649,0.00022192,2]
[369364995,1751559049283,-153.0,0.00022192,2]
[369364996,1751559049293,-575.6969649,0.00022192,2]
[369364997,1751559049303,-153.0,0.00022192,2]
[369364998,1751559049313,-177.6570982,0.00022192,2]
[369364999,1751559049323,-575.6969649,0.00022192,2]
[369365000,1751559049333,-177.6570982,0.00022192,2]
[369365001,1751559049343,-575.5050994,0.00022192,2]
[369365002,1751559049353,-177.6570982,0.00022192,2]
[369365003,1751559049364,-153.0,0.00022192,2]
[369365004,1751559049374,-177.6570982,0.00022192,2]
[369365005,1751559049385,-177.6570982,0.00022192,2]
[369365006,1751559049395,-177.6570982,0.00022192,2]
[369365007,1751559049405,-177.6570982,0.00022192,2]
[369365008,1751559049414,-15102.24855417,0.00022265,2]
[369365009,1751559049423,-8759.82402303,0.00022265,2]
[369365010,1751559049433,-151.0,0.00022265,7]
[369365011,1751559049443,-151.0,0.00022265,7]
[369365012,1751559049453,-151.0,0.00022265,7]
[369365013,1751559049463,-234.806129,0.00022265,7]
[369365014,1751559049472,-210.090478,0.00022265,7]